[Event "13 Open de Quenza"]
[Site "Quenza, France"]
[Date "2024.07.07"]
[Round "9.7"]
[White "Relange, Eloi"]
[Black "Krivenko, Dion"]
[Result "1/2-1/2"]
[TimeControl "5min+3s/move"]
[WhiteElo "2440"]
[BlackElo "2290"]

1. d4 {[%clk 00:05:03]} Nf6 {[%clk 00:05:03]} {[%emt 00:00:01]} 2. c4 {[%clk
00:05:03]} {[%emt 00:00:01]} g6 {[%clk 00:05:03]} {[%emt 00:00:01]} 3. Nc3
{[%clk 00:04:59]} {[%emt 00:00:07]} Bg7 {[%clk 00:05:03]} 4. e4 {[%clk
00:04:59]} {[%emt 00:00:04]} d6 {[%clk 00:05:03]} {[%emt 00:00:01]} 5. Nf3
{[%clk 00:04:59]} {[%emt 00:00:01]} O-O {[%clk 00:05:03]} {[%emt 00:00:02]} 6.
Be2 {[%clk 00:04:59]} {[%emt 00:00:01]} e5 {[%clk 00:05:03]} {[%emt 00:00:03]}
7. Be3 {[%clk 00:04:59]} {[%emt 00:00:01]} Ng4 {[%clk 00:05:02]} {[%emt
00:00:05]} 8. Bg5 {[%clk 00:04:59]} {[%emt 00:00:01]} f6 {[%clk 00:05:02]}
{[%emt 00:00:01]} 9. Bc1 {[%clk 00:04:59]} {[%emt 00:00:01]} Nh6 {[%clk
00:04:40]} {[%emt 00:00:24]} 10. O-O {[%clk 00:04:50]} {[%emt 00:00:13]} Nc6
{[%clk 00:04:40]} {[%emt 00:00:04]} 11. c5 {[%clk 00:04:41]} {[%emt 00:00:11]}
Nf7 {[%clk 00:04:27]} {[%emt 00:00:16]} 12. cxd6 {[%clk 00:04:25]} {[%emt
00:00:20]} cxd6 {[%clk 00:04:19]} {[%emt 00:00:11]} 13. Be3 {[%clk 00:04:14]}
{[%emt 00:00:13]} f5 {[%clk 00:03:54]} {[%emt 00:00:28]} 14. dxe5 {[%clk
00:04:14]} {[%emt 00:00:01]} dxe5 {[%clk 00:03:44]} {[%emt 00:00:13]} 15. Bc5
{[%clk 00:03:59]} {[%emt 00:00:18]} Re8 {[%clk 00:03:43]} {[%emt 00:00:05]} 16.
Qxd8 {[%clk 00:03:56]} {[%emt 00:00:06]} Nfxd8 {[%clk 00:03:13]} {[%emt
00:00:33]} 17. Rfd1 {[%clk 00:03:31]} {[%emt 00:00:27]} Ne6 {[%clk 00:03:06]}
{[%emt 00:00:11]} 18. Bc4 {[%clk 00:03:12]} {[%emt 00:00:22]} Kh8 {[%clk
00:03:06]} {[%emt 00:00:01]} 19. Ba3 {[%clk 00:03:12]} Ncd4 {[%clk 00:02:54]}
{[%emt 00:00:15]} 20. Nxd4 {[%clk 00:02:44]} {[%emt 00:00:31]} Nxd4 {[%clk
00:02:54]} {[%emt 00:00:01]} 21. Nb5 {[%clk 00:02:44]} Be6 {[%clk 00:02:05]}
{[%emt 00:00:52]} 22. Bxe6 {[%clk 00:02:35]} {[%emt 00:00:11]} Nxe6 {[%clk
00:02:05]} {[%emt 00:00:01]} 23. Nd6 {[%clk 00:02:19]} {[%emt 00:00:19]} Nd4
{[%clk 00:01:37]} {[%emt 00:00:30]} 24. Nxe8 {[%clk 00:02:06]} {[%emt
00:00:16]} Rxe8 {[%clk 00:01:37]} 25. Bc5 {[%clk 00:01:59]} {[%emt 00:00:11]}
b6 {[%clk 00:01:21]} {[%emt 00:00:20]} 26. Bxd4 {[%clk 00:01:59]} {[%emt
00:00:01]} exd4 {[%clk 00:01:21]} {[%emt 00:00:01]} 27. exf5 {[%clk 00:01:59]}
gxf5 {[%clk 00:01:21]} 28. Re1 {[%clk 00:01:59]} {[%emt 00:00:03]} Rd8 {[%clk
00:01:17]} {[%emt 00:00:07]} 29. Re7 {[%clk 00:01:51]} {[%emt 00:00:10]} d3
{[%clk 00:01:17]} {[%emt 00:00:01]} 30. Rd1 {[%clk 00:01:44]} {[%emt 00:00:10]}
Bxb2 {[%clk 00:00:58]} {[%emt 00:00:22]} 31. Kf1 {[%clk 00:01:31]} {[%emt
00:00:16]} a5 {[%clk 00:00:46]} {[%emt 00:00:16]} 32. Re3 {[%clk 00:01:29]}
{[%emt 00:00:04]} d2 {[%clk 00:00:28]} {[%emt 00:00:21]} 33. Rb3 {[%clk
00:01:29]} Bc1 {[%clk 00:00:28]} {[%emt 00:00:01]} 34. Rxb6 {[%clk 00:01:29]}
{[%emt 00:00:02]} a4 {[%clk 00:00:24]} {[%emt 00:00:07]} 35. Rb5 {[%clk
00:01:26]} {[%emt 00:00:06]} a3 {[%emt 00:00:10]} 36. Rxf5 {[%clk 00:01:21]}
{[%emt 00:00:08]} Rc8 {[%clk 00:00:17]} {[%emt 00:00:02]} 37. Rf7 {[%clk
00:00:36]} {[%emt 00:00:48]} Rc2 {[%clk 00:00:15]} {[%emt 00:00:05]} 38. Ra7
{[%clk 00:00:36]} {[%emt 00:00:02]} Rxa2 {[%clk 00:00:15]} {[%emt 00:00:02]} 39.
Ke2 {[%clk 00:00:36]} Rc2 {[%clk 00:00:13]} {[%emt 00:00:05]} 40. Kd3 {[%clk
00:00:34]} {[%emt 00:00:05]} Rc8 {[%clk 00:00:13]} {[%emt 00:00:04]} 41. f4
{[%clk 00:00:29]} {[%emt 00:00:09]} Rd8+ {[%clk 00:00:13]} {[%emt 00:00:01]} 42.
Ke2 {[%clk 00:00:29]} {[%emt 00:00:02]} Re8+ {[%clk 00:00:13]} 43. Kf2 {[%clk
00:00:28]} {[%emt 00:00:03]} Re4 {[%clk 00:00:08]} {[%emt 00:00:08]} 44. g3
{[%clk 00:00:28]} {[%emt 00:00:03]} Kg8 {[%clk 00:00:08]} 45. Kf3 {[%clk
00:00:28]} {[%emt 00:00:03]} Re1 {[%clk 00:00:07]} {[%emt 00:00:04]} 46. Rxd2
{[%clk 00:00:28]} {[%emt 00:00:02]} Bxd2 {[%clk 00:00:07]} {[%emt 00:00:01]} 47.
Rxa3 {[%clk 00:00:28]} {[%emt 00:00:01]} Bb4 {[%clk 00:00:07]} {[%emt
00:00:03]} 48. Ra7 {[%clk 00:00:27]} {[%emt 00:00:03]} Rf1+ {[%clk 00:00:07]}
{[%emt 00:00:04]} 49. Kg4 {[%clk 00:00:27]} {[%emt 00:00:01]} Rf2 {[%clk
00:00:07]} {[%emt 00:00:01]} 50. h4 {[%clk 00:00:26]} {[%emt 00:00:04]} Rg2
{[%clk 00:00:07]} {[%emt 00:00:02]} 51. Kf3 {[%clk 00:00:25]} {[%emt 00:00:04]}
Rg1 {[%clk 00:00:07]} {[%emt 00:00:02]} 52. g4 {[%clk 00:00:20]} {[%emt
00:00:08]} Rh1 {[%clk 00:00:07]} {[%emt 00:00:04]} 53. h5 {[%clk 00:00:19]}
{[%emt 00:00:05]} Rf1+ {[%clk 00:00:07]} 54. Ke4 {[%clk 00:00:19]} {[%emt
00:00:01]} Rc1 {[%clk 00:00:06]} {[%emt 00:00:05]} 55. Ra8+ {[%clk 00:00:16]}
{[%emt 00:00:05]} Kf7 {[%clk 00:00:06]} {[%emt 00:00:02]} 56. Ra7+ {[%clk
00:00:16]} Kg8 57. Ra8+ {[%clk 00:00:16]} {[%emt 00:00:01]} Bf8 {[%emt
00:00:07]} 58. g5 Rc4+ {[%clk 00:00:05]} 59. Kf5 {[%emt 00:00:01]} Rc5+ 60. Kg4
{[%clk 00:00:16]} Rc6 {[%clk 00:00:05]} {[%emt 00:00:02]} 61. h6 {[%clk
00:00:15]} {[%emt 00:00:05]} Rc1 {[%clk 00:00:05]} {[%emt 00:00:02]} 62. Kf5
{[%clk 00:00:15]} {[%emt 00:00:02]} Rc5+ {[%clk 00:00:05]} {[%emt 00:00:01]} 63.
Ke4 {[%clk 00:00:15]} Rc4+ {[%clk 00:00:05]} {[%emt 00:00:01]} 64. Ke5 {[%clk
00:00:15]} Rc5+ {[%clk 00:00:05]} 65. Kd4 {[%clk 00:00:15]} Rb5 {[%clk
00:00:05]} {[%emt 00:00:03]} 66. Ke4 {[%clk 00:00:15]} Rb4+ {[%clk 00:00:05]}
{[%emt 00:00:01]} 67. Kf3 {[%clk 00:00:15]} Rb3+ {[%clk 00:00:05]} 68. Kg4
{[%clk 00:00:15]} {[%emt 00:00:01]} Rb4 {[%clk 00:00:05]} {[%emt 00:00:01]} 69.
Rc8 {[%clk 00:00:15]} {[%emt 00:00:01]} Ra4 {[%clk 00:00:05]} {[%emt 00:00:01]}
70. Rb8 {[%clk 00:00:10]} {[%emt 00:00:08]} Rc4 {[%clk 00:00:05]} {[%emt
00:00:01]} 71. Kf5 {[%clk 00:00:10]} Rc5+ {[%clk 00:00:05]} {[%emt 00:00:01]}
72. Ke6 {[%clk 00:00:10]} {[%emt 00:00:02]} Rc6+ {[%clk 00:00:05]} {[%emt
00:00:02]} 73. Kd5 {[%clk 00:00:10]} Ra6 {[%clk 00:00:05]} {[%emt 00:00:02]} 74.
f5 {[%clk 00:00:09]} {[%emt 00:00:04]} Ra5+ {[%clk 00:00:05]} {[%emt 00:00:03]}
75. Ke4 {[%clk 00:00:09]} Ra4+ {[%clk 00:00:05]} {[%emt 00:00:01]} 76. Kf3
{[%clk 00:00:09]} Ra3+ {[%clk 00:00:05]} {[%emt 00:00:02]} 77. Kg4 {[%clk
00:00:09]} Ra4+ {[%clk 00:00:05]} {[%emt 00:00:02]} 78. Kh5 {[%clk 00:00:09]}
Ra5 {[%clk 00:00:05]} 79. Kg4 {[%clk 00:00:08]} {[%emt 00:00:04]} Ra4+ {[%clk
00:00:05]} 80. Kf3 {[%clk 00:00:08]} Ra5 {[%clk 00:00:05]} 81. Ke4 {[%clk
00:00:08]} {[%emt 00:00:02]} Ra4+ {[%clk 00:00:05]} {[%emt 00:00:01]} 82. Kf3
{[%clk 00:00:06]} {[%emt 00:00:04]} Ra5 {[%clk 00:00:05]} {[%emt 00:00:02]} 83.
Ke4 {[%clk 00:00:06]} Ra4+ {[%clk 00:00:05]} 84. Kf3 {[%clk 00:00:06]} {[%emt
00:00:03]} 1/2-1/2

[Event "13 Open de Quenza"]
[Site "Quenza, France"]
[Date "2024.07.07"]
[Round "9.8"]
[White "Tomasi, Albert"]
[Black "Geronimi, Jean-Thomas"]
[Result "1-0"]
[TimeControl "5min+3s/move"]
[WhiteElo "2295"]
[BlackElo "2065"]

1. e4 {[%clk 00:05:03]} {[%emt 00:00:02]} c5 {[%clk 00:05:03]} {[%emt
00:00:01]} 2. Nf3 {[%clk 00:05:03]} {[%emt 00:00:02]} d6 {[%clk 00:05:03]}
{[%emt 00:00:02]} 3. d4 {[%clk 00:05:03]} {[%emt 00:00:02]} cxd4 {[%clk
00:05:03]} 4. Nxd4 {[%clk 00:05:03]} {[%emt 00:00:03]} Nf6 {[%clk 00:05:03]} 5.
Nc3 {[%clk 00:05:03]} {[%emt 00:00:03]} a6 {[%clk 00:05:03]} 6. g3 {[%clk
00:05:03]} {[%emt 00:00:02]} e5 {[%clk 00:05:03]} {[%emt 00:00:04]} 7. Nde2
{[%clk 00:05:03]} {[%emt 00:00:02]} Be7 {[%clk 00:04:56]} {[%emt 00:00:10]} 8.
Bg2 {[%clk 00:05:03]} {[%emt 00:00:02]} O-O {[%clk 00:04:56]} {[%emt 00:00:03]}
9. O-O {[%clk 00:05:03]} {[%emt 00:00:03]} b5 {[%clk 00:04:36]} {[%emt
00:00:23]} 10. Nd5 {[%clk 00:05:03]} {[%emt 00:00:02]} Nxd5 {[%clk 00:04:20]}
{[%emt 00:00:19]} 11. Qxd5 {[%clk 00:05:03]} {[%emt 00:00:02]} Ra7 {[%clk
00:04:20]} {[%emt 00:00:01]} 12. Be3 {[%clk 00:05:03]} {[%emt 00:00:02]} Bb7
{[%clk 00:04:20]} {[%emt 00:00:01]} 13. Qd2 {[%clk 00:04:50]} {[%emt 00:00:16]}
Ra8 {[%clk 00:04:20]} {[%emt 00:00:02]} 14. a4 {[%clk 00:03:43]} {[%emt
00:01:10]} Nd7 {[%clk 00:04:14]} {[%emt 00:00:09]} 15. axb5 {[%clk 00:03:41]}
{[%emt 00:00:06]} axb5 {[%clk 00:04:14]} {[%emt 00:00:01]} 16. Nc3 {[%clk
00:03:41]} {[%emt 00:00:01]} b4 {[%clk 00:02:53]} {[%emt 00:01:24]} 17. Nd5
{[%clk 00:03:41]} {[%emt 00:00:02]} Bxd5 {[%clk 00:02:53]} {[%emt 00:00:01]} 18.
Qxd5 {[%clk 00:03:22]} {[%emt 00:00:22]} Rxa1 {[%clk 00:02:53]} {[%emt
00:00:02]} 19. Rxa1 {[%clk 00:03:22]} {[%emt 00:00:02]} Qc7 {[%clk 00:02:53]}
{[%emt 00:00:02]} 20. Ra7 {[%clk 00:03:10]} {[%emt 00:00:15]} Qc8 {[%clk
00:02:46]} {[%emt 00:00:11]} 21. Bh3 {[%clk 00:02:21]} {[%emt 00:00:52]} Nf6
{[%clk 00:01:15]} {[%emt 00:01:33]} 22. Bxc8 {[%clk 00:02:15]} {[%emt
00:00:10]} Nxd5 {[%clk 00:01:15]} {[%emt 00:00:01]} 23. exd5 {[%clk 00:02:15]}
{[%emt 00:00:03]} Rxc8 {[%clk 00:01:15]} 24. Rxe7 {[%clk 00:02:15]} {[%emt
00:00:02]} Kf8 {[%clk 00:01:15]} 25. Rb7 {[%clk 00:01:55]} {[%emt 00:00:23]}
Rxc2 {[%clk 00:01:14]} {[%emt 00:00:04]} 26. Rxb4 {[%clk 00:01:54]} {[%emt
00:00:04]} h6 {[%clk 00:00:57]} {[%emt 00:00:20]} 27. h4 {[%clk 00:01:19]}
{[%emt 00:00:37]} f5 {[%clk 00:00:56]} {[%emt 00:00:05]} 28. Rb7 {[%clk
00:01:11]} {[%emt 00:00:11]} Rc4 {[%clk 00:00:51]} {[%emt 00:00:07]} 29. b3
{[%clk 00:01:02]} {[%emt 00:00:12]} Rc3 {[%clk 00:00:49]} {[%emt 00:00:05]} 30.
b4 {[%clk 00:01:01]} {[%emt 00:00:05]} Rd3 {[%clk 00:00:49]} {[%emt 00:00:02]}
31. Rb5 {[%clk 00:00:54]} {[%emt 00:00:10]} Ke7 {[%clk 00:00:44]} {[%emt
00:00:08]} 32. Kf1 {[%clk 00:00:54]} {[%emt 00:00:02]} e4 {[%clk 00:00:44]}
{[%emt 00:00:01]} 33. Ke2 {[%clk 00:00:54]} {[%emt 00:00:02]} Kd7 {[%clk
00:00:39]} {[%emt 00:00:08]} 34. Rb7+ {[%clk 00:00:54]} {[%emt 00:00:03]} Kc8
{[%clk 00:00:39]} {[%emt 00:00:02]} 35. Rxg7 {[%clk 00:00:52]} {[%emt
00:00:04]} Rxd5 {[%clk 00:00:39]} {[%emt 00:00:01]} 36. Bxh6 {[%clk 00:00:49]}
{[%emt 00:00:06]} Rd4 {[%clk 00:00:38]} {[%emt 00:00:04]} 37. Bd2 {[%clk
00:00:49]} {[%emt 00:00:02]} Rc4 {[%clk 00:00:38]} {[%emt 00:00:02]} 38. h5
{[%emt 00:00:02]} d5 39. h6 {[%clk 00:00:49]} {[%emt 00:00:02]} 1-0

[Event "13 Open de Quenza"]
[Site "Quenza, France"]
[Date "2024.07.07"]
[Round "9.9"]
[White "Glek, Igor"]
[Black "Roux, Baptiste"]
[Result "0-1"]
[TimeControl "5min+3s/move"]
[WhiteElo "2396"]
[BlackElo "2352"]

1. e4 {[%clk 00:05:03]} c5 {[%clk 00:05:03]} {[%emt 00:00:01]} 2. Nf3 {[%emt
00:00:01]} e6 3. d3 {[%clk 00:05:03]} Nc6 {[%clk 00:05:03]} {[%emt 00:00:01]} 4.
g3 {[%clk 00:05:03]} {[%emt 00:00:01]} d5 {[%clk 00:05:03]} 5. Qe2 {[%clk
00:05:03]} {[%emt 00:00:01]} Be7 {[%clk 00:04:57]} {[%emt 00:00:10]} 6. Bg2
{[%clk 00:05:03]} Nf6 {[%clk 00:04:57]} {[%emt 00:00:01]} 7. O-O {[%clk
00:05:03]} {[%emt 00:00:02]} O-O {[%clk 00:04:55]} {[%emt 00:00:05]} 8. e5
{[%clk 00:05:03]} {[%emt 00:00:01]} Nd7 {[%clk 00:04:55]} {[%emt 00:00:02]} 9.
c4 {[%clk 00:05:03]} {[%emt 00:00:01]} f6 {[%clk 00:03:56]} {[%emt 00:01:03]}
10. exf6 {[%clk 00:04:49]} {[%emt 00:00:17]} Nxf6 {[%clk 00:03:56]} {[%emt
00:00:02]} 11. Na3 {[%clk 00:04:20]} {[%emt 00:00:32]} Bd7 {[%clk 00:03:51]}
{[%emt 00:00:09]} 12. Bf4 {[%clk 00:04:02]} {[%emt 00:00:20]} a6 {[%clk
00:03:44]} {[%emt 00:00:10]} 13. Nc2 {[%clk 00:03:36]} {[%emt 00:00:28]} Nh5
{[%clk 00:03:27]} {[%emt 00:00:19]} 14. Be3 {[%clk 00:03:19]} {[%emt 00:00:19]}
b5 {[%clk 00:02:59]} {[%emt 00:00:33]} 15. b3 {[%clk 00:03:02]} {[%emt
00:00:20]} g6 {[%clk 00:02:57]} {[%emt 00:00:04]} 16. Bh6 {[%clk 00:02:56]}
{[%emt 00:00:08]} Ng7 {[%clk 00:02:50]} {[%emt 00:00:11]} 17. Rad1 {[%clk
00:02:50]} {[%emt 00:00:08]} Rf7 {[%clk 00:02:33]} {[%emt 00:00:21]} 18. h4
{[%clk 00:02:24]} {[%emt 00:00:29]} Nf5 {[%clk 00:02:32]} {[%emt 00:00:04]} 19.
Bg5 {[%clk 00:02:24]} h6 {[%clk 00:02:25]} {[%emt 00:00:11]} 20. Bxe7 {[%clk
00:02:24]} {[%emt 00:00:02]} Rxe7 {[%clk 00:01:59]} {[%emt 00:00:29]} 21. Ne5
{[%clk 00:02:21]} {[%emt 00:00:06]} Be8 {[%clk 00:01:49]} {[%emt 00:00:13]} 22.
Rfe1 {[%clk 00:02:13]} {[%emt 00:00:11]} Raa7 {[%clk 00:01:29]} {[%emt
00:00:24]} 23. Nxc6 {[%clk 00:01:55]} {[%emt 00:00:21]} Bxc6 {[%clk 00:01:29]}
{[%emt 00:00:01]} 24. d4 {[%clk 00:01:46]} {[%emt 00:00:12]} bxc4 {[%clk
00:01:23]} {[%emt 00:00:09]} 25. bxc4 {[%clk 00:01:46]} {[%emt 00:00:01]} Qa5
{[%clk 00:01:06]} {[%emt 00:00:21]} 26. dxc5 {[%clk 00:01:35]} {[%emt
00:00:14]} Qxc5 {[%clk 00:01:06]} {[%emt 00:00:03]} 27. Ne3 {[%clk 00:01:33]}
{[%emt 00:00:05]} dxc4 {[%clk 00:00:46]} {[%emt 00:00:23]} 28. Bxc6 {[%clk
00:01:17]} {[%emt 00:00:18]} Qxc6 {[%clk 00:00:44]} {[%emt 00:00:05]} 29. Nxc4
{[%clk 00:01:16]} {[%emt 00:00:04]} Qc5 {[%clk 00:00:33]} {[%emt 00:00:15]} 30.
Ne5 {[%clk 00:00:57]} {[%emt 00:00:22]} Kh7 {[%clk 00:00:33]} {[%emt 00:00:02]}
31. h5 {[%clk 00:00:56]} {[%emt 00:00:04]} gxh5 {[%clk 00:00:25]} {[%emt
00:00:10]} 32. Nd3 {[%clk 00:00:15]} {[%emt 00:00:43]} Qb6 {[%clk 00:00:17]}
{[%emt 00:00:12]} 33. Nf4 {[%clk 00:00:15]} {[%emt 00:00:03]} Rg7 {[%clk
00:00:12]} {[%emt 00:00:08]} 34. Kh2 {[%clk 00:00:15]} {[%emt 00:00:02]} h4
{[%clk 00:00:12]} {[%emt 00:00:03]} 35. g4 {[%clk 00:00:15]} {[%emt 00:00:02]}
Qc7 {[%clk 00:00:11]} {[%emt 00:00:04]} 36. Qe5 {[%clk 00:00:08]} {[%emt
00:00:10]} Qxe5 {[%clk 00:00:11]} {[%emt 00:00:04]} 37. Rxe5 {[%clk 00:00:08]}
Rxg4 {[%clk 00:00:11]} {[%emt 00:00:01]} 38. Nxe6 {[%clk 00:00:08]} {[%emt
00:00:01]} Rf7 {[%clk 00:00:10]} {[%emt 00:00:04]} 39. Rd8 {[%clk 00:00:07]}
{[%emt 00:00:04]} Ne7 {[%clk 00:00:08]} {[%emt 00:00:05]} 40. Nf8+ {[%clk
00:00:07]} {[%emt 00:00:02]} Kg7 {[%clk 00:00:08]} {[%emt 00:00:02]} 41. f3
{[%clk 00:00:00]} {[%emt 00:00:07]} 0-1

[Event "13 Open de Quenza"]
[Site "Quenza, France"]
[Date "2024.07.07"]
[Round "9.10"]
[White "Rosol, Philip"]
[Black "Yankelevich, Lev"]
[Result "0-1"]
[TimeControl "5min+3s/move"]
[WhiteElo "2150"]
[BlackElo "2416"]

1. d4 {[%clk 00:05:03]} Nf6 {[%clk 00:05:03]} {[%emt 00:00:02]} 2. c4 {[%clk
00:05:03]} {[%emt 00:00:01]} e6 {[%clk 00:05:03]} {[%emt 00:00:01]} 3. Nf3
{[%clk 00:05:03]} {[%emt 00:00:01]} Bb4+ {[%clk 00:05:03]} {[%emt 00:00:02]} 4.
Bd2 {[%clk 00:05:03]} {[%emt 00:00:02]} Qe7 {[%clk 00:05:03]} 5. a3 {[%clk
00:05:00]} {[%emt 00:00:07]} Bxd2+ {[%clk 00:05:03]} {[%emt 00:00:02]} 6. Nbxd2
{[%clk 00:05:00]} {[%emt 00:00:02]} d6 {[%clk 00:05:03]} {[%emt 00:00:01]} 7.
e4 {[%clk 00:04:58]} {[%emt 00:00:04]} e5 {[%clk 00:05:03]} {[%emt 00:00:02]} 8.
d5 {[%clk 00:04:52]} {[%emt 00:00:09]} O-O {[%clk 00:05:03]} {[%emt 00:00:02]}
9. Bd3 {[%clk 00:04:52]} {[%emt 00:00:01]} Nh5 {[%clk 00:04:40]} {[%emt
00:00:26]} 10. O-O {[%clk 00:04:26]} {[%emt 00:00:30]} Nf4 {[%clk 00:04:40]}
{[%emt 00:00:02]} 11. Bc2 {[%clk 00:04:24]} {[%emt 00:00:05]} Qf6 {[%clk
00:04:38]} {[%emt 00:00:06]} 12. Kh1 {[%clk 00:03:49]} {[%emt 00:00:37]} Qg6
{[%clk 00:04:27]} {[%emt 00:00:14]} 13. Rg1 {[%clk 00:03:49]} {[%emt 00:00:03]}
Nd7 {[%clk 00:04:22]} {[%emt 00:00:08]} 14. Nf1 {[%clk 00:03:35]} {[%emt
00:00:18]} Nf6 {[%clk 00:04:16]} {[%emt 00:00:08]} 15. Ng3 {[%clk 00:03:30]}
{[%emt 00:00:09]} Bg4 {[%clk 00:04:00]} {[%emt 00:00:19]} 16. Qd2 {[%clk
00:02:59]} {[%emt 00:00:34]} Qh6 {[%clk 00:03:23]} {[%emt 00:00:40]} 17. Qe3
{[%clk 00:02:38]} {[%emt 00:00:25]} Bd7 {[%clk 00:02:54]} {[%emt 00:00:32]} 18.
Nf5 {[%clk 00:02:01]} {[%emt 00:00:39]} Bxf5 {[%clk 00:02:33]} {[%emt
00:00:24]} 19. exf5 {[%clk 00:01:58]} {[%emt 00:00:07]} Rfe8 {[%clk 00:02:04]}
{[%emt 00:00:32]} 20. b4 {[%clk 00:01:30]} {[%emt 00:00:31]} Ng4 {[%clk
00:01:47]} {[%emt 00:00:19]} 21. Qd2 {[%clk 00:01:25]} {[%emt 00:00:08]} e4
{[%clk 00:01:47]} {[%emt 00:00:03]} 22. Bxe4 {[%clk 00:00:49]} {[%emt
00:00:40]} Rxe4 {[%clk 00:01:47]} {[%emt 00:00:02]} 23. Rae1 {[%clk 00:00:49]}
{[%emt 00:00:01]} Nd3 {[%clk 00:01:20]} {[%emt 00:00:30]} 0-1

[Event "13 Open de Quenza"]
[Site "Quenza, France"]
[Date "2024.07.07"]
[Round "9.11"]
[White "Daulet, Alikhan"]
[Black "Anwesh, Upadhyaya"]
[Result "0-1"]
[TimeControl "5min+3s/move"]
[WhiteElo "1922"]
[BlackElo "2363"]

1. d4 {[%clk 00:05:03]} {[%emt 00:00:02]} d5 {[%clk 00:05:03]} {[%emt
00:00:01]} 2. c4 {[%clk 00:05:03]} {[%emt 00:00:01]} e6 {[%clk 00:05:03]}
{[%emt 00:00:01]} 3. Nc3 {[%clk 00:05:03]} {[%emt 00:00:02]} Nf6 {[%clk
00:05:03]} {[%emt 00:00:01]} 4. Bg5 {[%clk 00:05:03]} {[%emt 00:00:01]} c6
{[%clk 00:05:03]} {[%emt 00:00:02]} 5. Nf3 {[%clk 00:04:59]} {[%emt 00:00:08]}
dxc4 {[%clk 00:04:57]} {[%emt 00:00:10]} 6. e4 {[%clk 00:04:59]} {[%emt
00:00:02]} b5 {[%clk 00:04:57]} {[%emt 00:00:02]} 7. e5 {[%clk 00:04:59]}
{[%emt 00:00:02]} h6 {[%clk 00:04:57]} {[%emt 00:00:01]} 8. Bh4 {[%clk
00:04:59]} {[%emt 00:00:01]} g5 {[%clk 00:04:57]} {[%emt 00:00:02]} 9. Nxg5
{[%clk 00:04:59]} {[%emt 00:00:02]} hxg5 {[%clk 00:04:57]} 10. Bxg5 {[%clk
00:04:59]} {[%emt 00:00:01]} Nbd7 {[%clk 00:04:57]} {[%emt 00:00:03]} 11. g3
{[%clk 00:04:59]} Qa5 {[%clk 00:04:56]} {[%emt 00:00:04]} 12. exf6 {[%clk
00:04:54]} {[%emt 00:00:07]} Ba6 {[%clk 00:04:56]} {[%emt 00:00:02]} 13. Bg2
{[%clk 00:04:48]} {[%emt 00:00:08]} b4 {[%clk 00:04:55]} {[%emt 00:00:05]} 14.
Ne4 {[%clk 00:04:48]} c3 {[%clk 00:04:55]} {[%emt 00:00:02]} 15. Qc1 {[%clk
00:03:41]} {[%emt 00:01:10]} e5 {[%clk 00:04:02]} {[%emt 00:00:57]} 16. bxc3
{[%clk 00:03:28]} {[%emt 00:00:15]} bxc3 {[%clk 00:04:01]} {[%emt 00:00:04]} 17.
Be3 {[%clk 00:03:03]} {[%emt 00:00:28]} Ba3 {[%clk 00:03:35]} {[%emt 00:00:29]}
18. Qc2 {[%clk 00:03:03]} {[%emt 00:00:02]} Rb8 {[%clk 00:03:32]} {[%emt
00:00:06]} 19. Kd1 {[%clk 00:01:53]} {[%emt 00:01:13]} Rb2 {[%clk 00:03:15]}
{[%emt 00:00:19]} 20. Qxc3 {[%clk 00:01:48]} {[%emt 00:00:08]} Qa4+ {[%clk
00:03:02]} {[%emt 00:00:17]} 21. Ke1 {[%clk 00:01:36]} {[%emt 00:00:15]} Re2+
{[%clk 00:02:58]} {[%emt 00:00:07]} 22. Kf1 {[%clk 00:01:33]} {[%emt 00:00:06]}
Rxe3+ {[%clk 00:02:54]} {[%emt 00:00:07]} 23. Kg1 {[%clk 00:01:33]} Rxc3 {[%clk
00:02:49]} {[%emt 00:00:08]} 24. Nxc3 {[%clk 00:01:33]} {[%emt 00:00:01]} Qxd4
{[%clk 00:02:44]} {[%emt 00:00:08]} 25. Rd1 {[%clk 00:01:27]} {[%emt 00:00:09]}
Qxc3 {[%clk 00:02:42]} {[%emt 00:00:06]} 26. h4 {[%clk 00:01:27]} Bc5 {[%clk
00:02:31]} {[%emt 00:00:14]} 27. h5 {[%clk 00:00:46]} {[%emt 00:00:43]} Bxf2+
{[%clk 00:01:49]} {[%emt 00:00:45]} 28. Kxf2 {[%clk 00:00:46]} {[%emt
00:00:04]} Qc2+ {[%clk 00:01:49]} {[%emt 00:00:02]} 29. Ke3 {[%clk 00:00:42]}
{[%emt 00:00:06]} Qe2# {[%clk 00:01:49]} {[%emt 00:00:03]} 30. Kd4 {[%emt
00:00:03]} 0-1